bitfinex/quotes_SOLUSD_20250321
["timestamp","ask_amount","ask_price","bid_price","bid_amount"]
[1742573141322,64.50184207,125.59,125.58,0.03]
[1742573141622,86.80824314,125.59,125.58,0.03]
[1742573141824,37.60547007,125.59,125.58,0.03]
[1742573142017,45.56787007,125.59,125.58,0.03]
[1742573142200,45.85219321,125.59,125.58,0.03]
[1742573142407,86.80824314,125.59,125.58,0.03]
[1742573143610,86.60824314,125.59,125.58,0.03]
[1742573143808,0.28432314,125.56,125.5,7.9681]
[1742573144123,22.30640107,125.54,125.5,7.9681]
[1742573144521,22.30640107,125.54,125.5,27.8884]
[1742573145201,6.78742314,125.56,125.5,7.9681]
[1742573145202,22.30640107,125.52,125.5,7.9681]
[1742573145511,22.30640107,125.52,125.49,7.9687]
[1742573145821,22.30640107,125.52,125.48,7.9693]
[1742573146016,22.30640107,125.53,125.48,50.19910107]
[1742573147116,0.28432314,125.54,125.48,50.19910107]
[1742573147313,22.30640107,125.52,125.48,27.8927]
[1742573147710,22.30640107,125.52,125.48,7.9693]
[1742573148726,22.30640107,125.52,125.5,0.03]
[1742573148899,22.59072421,125.51,125.5,0.03]
[1742573149105,22.87504735,125.51,125.5,0.03]
[1742573149325,0.28432314,125.5,125.45,0.03]
[1742573149524,22.30640107,125.48,125.45,8.0012]
[1742573149828,22.30640107,125.46,125.45,0.03]
[1742573150615,22.30640107,125.48,125.45,0.03]
[1742573150801,22.30640107,125.49,125.45,0.03]
[1742573151004,22.30640107,125.5,125.45,22.33640107]
[1742573151426,5.78543354,125.48,125.46,22.30640107]
[1742573151809,5.78543354,125.48,125.47,7.97]
[1742573152021,22.30640107,125.52,125.47,30.27640107]
[1742573152360,22.30640107,125.52,125.48,22.30640107]
[1742573152499,22.30640107,125.52,125.47,50.20140107]
[1742573152933,22.30640107,125.51,125.47,50.20140107]
[1742573153309,22.30640107,125.52,125.47,50.20140107]
[1742573153807,22.30640107,125.51,125.47,27.895]
[1742573154715,22.30640107,125.51,125.47,7.97]
[1742573155118,22.30640107,125.5,125.47,7.97]
[1742573155303,28.12029405,125.5,125.47,7.97]
[1742573156217,5.81389298,125.49,125.47,7.97]
[1742573156416,5.81389298,125.49,125.48,22.30640107]
[1742573157646,22.30640107,125.52,125.48,22.30640107]
[1742573157828,22.30640107,125.52,125.47,50.20140107]
[1742573158141,22.30640107,125.54,125.49,30.27510107]
[1742573158357,0.28432314,125.55,125.49,50.19700107]
[1742573158652,22.30640107,125.53,125.49,50.19700107]
[1742573158814,5.81166981,125.54,125.49,7.9687]
[1742573159018,22.30640107,125.51,125.49,7.9687]
[1742573159246,22.30640107,125.51,125.48,7.9691]
[1742573159430,22.30640107,125.5,125.48,7.9691]
[1742573159821,22.30640107,125.5,125.47,7.9697]
[1742573160032,22.30640107,125.49,125.46,7.9706]
[1742573160234,22.30640107,125.49,125.42,46.25902314]
[1742573160235,22.30640107,125.47,125.37,0.03]
[1742573160425,22.30640107,125.38,125.28,22.30640107]
[1742573160636,22.30640107,125.37,125.3,22.30640107]
[1742573160834,22.30640107,125.37,125.26,13.66716556]
[1742573160835,22.30640107,125.4,125.33,22.30640107]
[1742573161045,22.30640107,125.41,125.34,22.30640107]
[1742573161251,22.30640107,125.39,125.34,8.52]
[1742573161554,28.10854731,125.4,125.34,8.52]
[1742573161733,28.10854731,125.4,125.33,22.30640107]
[1742573161933,22.30640107,125.39,125.33,8.5]
[1742573162133,5.80214624,125.4,125.3,210.64]
[1742573162134,22.30640107,125.37,125.3,7.9805]
[1742573162344,29.10854731,125.4,125.25,22.30640107]
[1742573162345,22.30640107,125.31,125.25,22.30640107]
[1742573162730,22.30640107,125.31,125.26,21.76716556]
[1742573163246,35.84651872,125.28,125.26,13.16716556]
[1742573165343,1.0,125.33,125.26,13.16716556]
[1742573165656,35.84651872,125.32,125.27,11.4936862]
[1742573165855,1.0,125.35,125.27,55.32280492]
[1742573166052,35.84651872,125.37,125.31,35.84651872]
[1742573166355,35.84651872,125.36,125.31,8.64]
[1742573166552,1.0,125.39,125.31,44.48651872]
[1742573166727,35.84651872,125.36,125.31,44.48651872]
[1742573167155,35.84651872,125.36,125.31,8.64]
[1742573167627,35.84651872,125.34,125.31,8.64]
[1742573169047,35.84651872,125.32,125.31,8.64]
[1742573169357,8.9765,125.37,125.31,8.64]
[1742573169358,35.84651872,125.33,125.31,8.64]
[1742573169947,35.84651872,125.34,125.31,8.64]
[1742573170957,0.28432314,125.27,125.18,1.0]
[1742573171127,1.0,125.26,125.18,8.988]
[1742573171323,1.28432314,125.26,125.18,44.83451872]
[1742573171534,0.14216157,125.26,125.18,8.988]
[1742573171727,0.14216157,125.26,125.2,35.84651872]
[1742573171926,35.98868029,125.26,125.2,44.62651872]
[1742573172156,0.14216157,125.26,125.21,43.83301872]
[1742573172336,0.14216157,125.26,125.2,8.78]
[1742573172551,0.14216157,125.26,125.2,51.05200522]
[1742573172757,35.84651872,125.24,125.2,6.4254865]
[1742573173250,36.13084186,125.25,125.2,42.27200522]
[1742573173427,0.28432314,125.25,125.2,42.27200522]
[1742573173766,37.13084186,125.26,125.21,35.84651872]
[1742573173767,36.84651872,125.26,125.21,35.84651872]
[1742573174050,0.28432314,125.26,125.2,14.4125865]
[1742573174251,0.28432314,125.26,125.22,35.84651872]
[1742573175161,1.0,125.28,125.24,35.84651872]
[1742573175332,0.14216157,125.27,125.23,35.84651872]
[1742573175839,1.0,125.28,125.23,35.84651872]
[1742573176042,1.0,125.28,125.22,8.76]
[1742573176043,35.98868029,125.32,125.27,35.84651872]
[1742573176240,0.14216157,125.32,125.27,43.82881872]
[1742573176441,36.84651872,125.36,125.31,35.84651872]
[1742573176645,49.37142863,125.37,125.32,35.84651872]
[1742573176848,35.84651872,125.36,125.31,35.84651872]
[1742573177157,49.37142863,125.37,125.32,35.84651872]
[1742573177755,35.84651872,125.36,125.31,8.76]
[1742573177943,35.84651872,125.36,125.31,44.60651872]
[1742573178138,35.84651872,125.36,125.33,7.9789]
[1742573178644,13.52490991,125.37,125.33,43.82541872]
[1742573178857,13.52490991,125.37,125.34,35.84651872]
[1742573179160,53.68221396,125.39,125.34,53.68221396]
[1742573179363,53.68221396,125.38,125.33,81.60841396]
[1742573180063,53.68221396,125.38,125.33,27.9262]
[1742573180246,53.68221396,125.38,125.33,73.62951396]
[1742573180441,53.68221396,125.39,125.34,53.68221396]
[1742573180656,53.68221396,125.39,125.35,8.7]
[1742573181335,53.68221396,125.38,125.35,8.7]
[1742573181665,53.68221396,125.4,125.35,62.38221396]
[1742573182041,0.56864628,125.44,125.37,53.68221396]
[1742573182245,53.68221396,125.42,125.38,7.9757]
[1742573182439,53.68221396,125.42,125.38,27.915]
[1742573182843,53.68221396,125.43,125.38,81.59721396]
[1742573183041,53.68221396,125.44,125.39,53.68221396]
[1742573183741,1.0,125.49,125.4,53.68221396]
[1742573183965,53.68221396,125.45,125.4,365.68221396]
[1742573184166,0.28432314,125.49,125.41,53.68221396]
[1742573184357,53.68221396,125.46,125.42,16.6332]
[1742573184747,53.68221396,125.45,125.42,16.6332]
[1742573185067,53.68221396,125.43,125.42,8.66]
[1742573185252,53.68221396,125.43,125.39,219.54]
[1742573185668,53.68221396,125.43,125.39,273.22221396]
[1742573186142,53.68221396,125.43,125.4,8.64]
[1742573186352,53.68221396,125.42,125.4,8.64]
[1742573186547,53.68221396,125.41,125.39,210.9]
[1742573186841,53.68221396,125.4,125.39,210.9]
[1742573187044,53.68221396,125.42,125.39,210.9]
[1742573187250,53.68221396,125.41,125.39,210.9]
[1742573187650,53.68221396,125.41,125.39,214.3641636]
[1742573187847,38.68221396,125.41,125.39,214.3641636]
[1742573188265,53.68221396,125.4,125.39,214.3641636]
[1742573188482,9.25562314,125.45,125.39,3.4641636]
[1742573188658,53.68221396,125.41,125.39,3.4641636]
[1742573189055,9.25562314,125.45,125.39,3.4641636]
[1742573189250,53.68221396,125.42,125.39,3.4641636]
[1742573189651,9.25562314,125.45,125.39,3.4641636]
[1742573189957,53.68221396,125.42,125.39,3.4641636]
[1742573190273,53.68221396,125.41,125.39,3.4641636]
[1742573192351,7.9726,125.43,125.39,3.4641636]
[1742573192558,53.68221396,125.41,125.39,3.4641636]
[1742573193378,53.68221396,125.42,125.39,3.4641636]
[1742573193673,53.68221396,125.41,125.39,3.4641636]
[1742573194174,53.68221396,125.42,125.39,3.4641636]
[1742573194375,7.9719,125.44,125.39,3.4641636]
[1742573194574,53.68221396,125.43,125.39,11.4390636]
[1742573194782,53.68221396,125.44,125.39,65.12127756]
[1742573194971,53.68221396,125.45,125.4,53.68221396]
[1742573195149,8.9674,125.51,125.42,53.68221396]
[1742573195480,53.68221396,125.47,125.42,53.68221396]
[1742573196149,53.68221396,125.46,125.42,53.68221396]
[1742573196355,53.68221396,125.46,125.41,53.68221396]
[1742573196675,53.68221396,125.44,125.41,7.9738]
[1742573196859,53.68221396,125.43,125.41,7.9738]
[1742573197067,53.68221396,125.44,125.41,7.9738]
[1742573197247,53.68221396,125.45,125.41,7.9738]
[1742573197457,8.39458471,125.5,125.42,53.68221396]
[1742573197677,53.68221396,125.47,125.42,53.68221396]
[1742573198080,53.68221396,125.48,125.43,53.68221396]
[1742573198262,53.68221396,125.47,125.43,8.5]
[1742573198775,53.68221396,125.47,125.44,7.9719]
[1742573199071,53.68221396,125.48,125.44,7.9719]
[1742573199273,0.063,125.5,125.44,43.70980519]
[1742573199491,0.063,125.5,125.46,35.73790519]
[1742573200169,0.063,125.5,125.47,8.48]
[1742573200655,35.80090519,125.5,125.48,7.9693]
[1742573200972,35.73790519,125.49,125.47,16.4497]
[1742573201352,0.063,125.5,125.47,8.48]
[1742573201555,35.73790519,125.49,125.47,16.4497]
[1742573201779,35.73790519,125.48,125.47,8.48]
[1742573201977,35.73790519,125.48,125.44,8.44]
[1742573202159,35.73790519,125.46,125.44,8.44]
[1742573202362,35.73790519,125.47,125.44,16.4119]
[1742573202678,35.73790519,125.48,125.44,16.4119]
[1742573202876,35.73790519,125.48,125.44,19.8760636]
[1742573203381,35.73790519,125.49,125.44,55.61396879]
[1742573204758,35.73790519,125.48,125.44,19.8760636]
[1742573205183,35.73790519,125.48,125.44,55.61396879]
[1742573205477,35.80090519,125.5,125.46,35.73790519]
[1742573205856,20.73790519,125.49,125.45,35.73790519]
[1742573206479,20.73790519,125.49,125.44,47.64206879]
[1742573206979,35.80090519,125.5,125.45,43.70880519]
[1742573207171,35.80090519,125.5,125.46,35.73790519]
[1742573207172,0.063,125.5,125.46,35.73790519]
[1742573207574,35.80090519,125.5,125.45,63.63700519]
[1742573208064,0.063,125.5,125.46,35.73790519]
[1742573208380,0.063,125.5,125.45,27.8991]
[1742573208381,0.063,125.5,125.47,43.70790519]
[1742573208589,0.063,125.5,125.48,44.09790519]
[1742573208788,0.063,125.5,125.48,8.36]
[1742573209272,0.063,125.5,125.48,44.09790519]
[1742573209654,0.063,125.5,125.48,8.36]
[1742573210074,20.80090519,125.51,125.48,8.36]
[1742573210504,35.73790519,125.52,125.49,7.9687]
[1742573210783,35.73790519,125.54,125.49,43.70660519]
[1742573211082,35.80090519,125.55,125.5,35.73790519]
[1742573211451,35.80090519,125.55,125.49,29.548]
[1742573211452,35.73790519,125.54,125.49,29.548]
[1742573211657,35.73790519,125.54,125.49,65.28590519]
[1742573211962,35.73790519,125.54,125.49,45.36400519]
[1742573212368,0.063,125.5,125.49,45.36400519]
[1742573213285,0.063,125.5,125.49,9.6261]
[1742573213785,0.063,125.5,125.49,45.36400519]
[1742573214288,35.80090519,125.55,125.49,357.36400519]
[1742573214492,0.063,125.55,125.51,35.73790519]
[1742573214788,0.063,125.55,125.5,35.73790519]
[1742573215189,35.73790519,125.54,125.49,45.36400519]
[1742573215363,0.063,125.55,125.49,1.6574]
[1742573215364,35.73790519,125.52,125.49,1.6574]
[1742573215565,35.73790519,125.51,125.47,218.6297]
[1742573215889,35.73790519,125.49,125.47,210.66]
[1742573216086,35.73790519,125.5,125.47,218.63]
[1742573216383,35.73790519,125.51,125.47,218.63]
[1742573217584,35.73790519,125.5,125.47,218.96]
[1742573217768,27.8794,125.54,125.47,218.96]
[1742573217969,35.73790519,125.5,125.47,230.3939636]
[1742573218369,35.73790519,125.48,125.47,222.4241636]
[1742573218789,35.73790519,125.49,125.47,222.4241636]
[1742573219288,35.73790519,125.48,125.47,214.1241636]
[1742573219590,35.73790519,125.48,125.47,3.4641636]
[1742573219911,35.73790519,125.49,125.47,3.4641636]
[1742573220386,35.73790519,125.5,125.47,11.4339636]
[1742573220967,35.73790519,125.49,125.47,3.4641636]
[1742573221162,35.73790519,125.48,125.47,3.4641636]
[1742573221364,35.73790519,125.49,125.47,3.4641636]
[1742573221664,43.70490519,125.52,125.47,11.4339636]
[1742573221866,35.73790519,125.49,125.47,11.4339636]
[1742573222070,35.73790519,125.51,125.47,11.4339636]
[1742573222279,7.9665,125.53,125.47,11.4339636]
[1742573222488,35.73790519,125.51,125.47,11.4339636]
[1742573222669,5.81468045,125.5,125.47,11.4339636]
[1742573223084,5.81468045,125.5,125.47,47.17186879]
[1742573223289,5.81468045,125.5,125.47,11.4339636]
[1742573223668,5.81468045,125.49,125.47,11.4339636]
[1742573224197,5.81468045,125.49,125.47,47.17186879]
[1742573224371,5.81468045,125.5,125.47,47.17186879]
[1742573224573,5.81468045,125.5,125.49,7.9687]
[1742573224901,5.81468045,125.5,125.49,43.70660519]
[1742573225078,5.81468045,125.5,125.49,51.92660519]
[1742573226078,35.73790519,125.54,125.49,51.92660519]
[1742573226079,5.81468045,125.53,125.49,51.92660519]
[1742573226683,41.55258564,125.53,125.49,16.1887]
[1742573227084,5.81468045,125.52,125.49,16.1887]
[1742573227702,5.81468045,125.51,125.49,328.1887]
[1742573228494,5.81468045,125.51,125.49,363.92660519]
[1742573228999,41.55258564,125.53,125.49,328.1887]
[1742573229299,35.73790519,125.52,125.49,16.1887]
[1742573229676,41.55258564,125.53,125.49,16.1887]
[1742573229876,35.73790519,125.53,125.49,16.1887]
[1742573230299,35.73790519,125.52,125.49,16.1887]
[1742573230799,35.73790519,125.53,125.49,16.1887]
[1742573231306,22.31826372,125.53,125.49,16.1887]
[1742573231595,22.31826372,125.5,125.47,3.4641636]
[1742573231797,22.31826372,125.48,125.47,3.4641636]
[1742573232373,28.14498968,125.48,125.47,3.4641636]
[1742573233303,85.8933219,125.48,125.47,3.4641636]
[1742573234098,50.12899707,125.48,125.47,3.4641636]
[1742573234476,85.8933219,125.48,125.47,3.4641636]
[1742573234923,42.50887111,125.45,125.44,0.03]
[1742573235200,51.48017111,125.45,125.44,0.03]
[1742573235402,36.76432483,125.45,125.44,0.03]
[1742573235703,35.76432483,125.45,125.44,0.03]
[1742573236280,5.82672596,125.45,125.44,0.03]
[1742573237504,35.76432483,125.47,125.44,0.03]
[1742573237807,35.76432483,125.46,125.44,0.03]
[1742573238001,35.76432483,125.45,125.44,0.03]
[1742573238305,35.76432483,125.47,125.44,0.03]
[1742573238709,7.9688,125.49,125.44,35.79432483]
[1742573238710,35.76432483,125.49,125.44,35.79432483]
[1742573238881,5.83518663,125.46,125.44,35.79432483]
[1742573239081,5.83518663,125.46,125.44,0.03]
[1742573239402,5.83518663,125.46,125.45,7.9713]
[1742573239782,35.76432483,125.5,125.45,43.73562483]
[1742573239983,35.76432483,125.5,125.45,51.83562483]
[1742573240507,7.9675,125.51,125.45,51.83562483]
[1742573240806,35.76432483,125.48,125.45,17.633]
[1742573241009,41.59936529,125.49,125.45,17.633]
[1742573241384,5.83504046,125.49,125.45,53.39732483]
[1742573241604,5.83504046,125.48,125.46,35.76432483]
[1742573242010,5.83504046,125.48,125.47,35.76432483]
[1742573242681,35.76432483,125.51,125.47,35.76432483]
[1742573242878,35.76432483,125.52,125.47,35.76432483]
[1742573243102,35.76432483,125.5,125.46,54.41397369]
[1742573243405,35.76432483,125.47,125.45,1.5617]
[1742573243602,35.76432483,125.48,125.45,1.5617]
[1742573244124,35.76432483,125.49,125.45,9.5329]
[1742573244286,35.76432483,125.51,125.46,35.76432483]
[1742573244690,35.76432483,125.49,125.45,45.29722483]
[1742573244899,5.83451422,125.5,125.46,35.76432483]
[1742573245208,41.59883905,125.5,125.45,45.29722483]
[1742573245614,5.83451422,125.5,125.46,35.76432483]
[1742573245791,35.76432483,125.51,125.46,35.76432483]
[1742573245985,35.76432483,125.5,125.45,45.29722483]
[1742573246713,35.76432483,125.49,125.45,1.5617]
[1742573246899,35.76432483,125.48,125.45,1.5617]
[1742573247414,35.76432483,125.49,125.45,37.32602483]
[1742573247590,35.76432483,125.49,125.45,1.5617]
[1742573247888,43.73322483,125.49,125.45,1.5617]
[1742573248088,7.9683,125.5,125.45,9.5329]
[1742573248287,35.76432483,125.49,125.45,1.5617]
[1742573248493,5.83754373,125.48,125.45,1.5617]
[1742573248700,41.60186856,125.48,125.45,313.5617]
[1742573249112,35.76432483,125.47,125.44,0.03]
[1742573249301,43.73562483,125.45,125.44,0.03]
[1742573249688,35.76432483,125.45,125.44,0.03]
[1742573249887,43.73562483,125.45,125.44,0.03]
[1742573250500,35.76432483,125.46,125.44,0.03]
[1742573250700,35.76432483,125.47,125.44,0.03]
[1742573251618,35.76432483,125.49,125.44,35.79432483]
[1742573252108,7.9684,125.5,125.44,35.79432483]
[1742573252109,35.76432483,125.48,125.44,312.03]
[1742573252321,35.76432483,125.47,125.44,320.05]
[1742573252692,35.76432483,125.46,125.44,8.05]
[1742573252906,35.76432483,125.46,125.44,0.03]
[1742573253695,35.76432483,125.45,125.44,0.03]
[1742573254208,35.76432483,125.46,125.44,0.03]
[1742573254615,35.76432483,125.48,125.44,0.03]
[1742573254996,35.76432483,125.47,125.44,0.03]
[1742573255196,5.83259569,125.47,125.44,0.03]
[1742573255600,5.83259569,125.47,125.45,35.76432483]
[1742573255801,5.83259569,125.47,125.45,355.76432483]
[1742573256000,43.73272483,125.5,125.45,355.76432483]
[1742573256343,43.73132483,125.52,125.47,35.76432483]
[1742573257023,35.76432483,125.51,125.47,35.76432483]
[1742573257214,7.9665,125.53,125.45,338.64964886]
[1742573257411,35.76432483,125.52,125.47,6.6588]
[1742573257599,35.76432483,125.52,125.48,7.9693]
[1742573257805,5.83423995,125.5,125.47,7.9697]
[1742573258204,5.83423995,125.5,125.48,35.76432483]
[1742573258393,35.76432483,125.52,125.48,35.76432483]
[1742573259212,35.76432483,125.52,125.47,43.73402483]
[1742573259520,5.83772668,125.51,125.47,43.73402483]
[1742573260320,5.83772668,125.51,125.48,312.0]
[1742573260499,35.76432483,125.53,125.49,9.5488]
[1742573260703,35.76432483,125.53,125.49,45.31312483]
[1742573260921,35.76432483,125.53,125.49,53.27312483]
[1742573261412,5.8403202,125.52,125.49,53.27312483]
[1742573262300,5.8403202,125.51,125.49,53.27312483]
[1742573262519,5.8403202,125.51,125.49,9.5401]
[1742573262823,5.8403202,125.51,125.49,17.5087]
[1742573263229,35.76432483,125.53,125.49,17.5087]
[1742573263727,35.82732483,125.54,125.49,53.27302483]
[1742573264221,5.8365824,125.52,125.49,53.27302483]
[1742573264608,5.8365824,125.52,125.49,17.5087]
[1742573264815,5.8365824,125.52,125.49,53.27302483]
[1742573265607,35.82732483,125.54,125.49,53.27302483]
[1742573265807,0.063,125.54,125.51,35.76432483]
[1742573266329,5.83628143,125.53,125.51,35.76432483]
[1742573266504,5.83628143,125.53,125.51,347.76432483]
[1742573266829,5.83628143,125.53,125.52,7.9668]
[1742573267206,5.83628143,125.53,125.51,312.0]
[1742573267432,35.76432483,125.53,125.51,312.0]
[1742573267626,35.76432483,125.52,125.49,9.5401]
[1742573268402,35.76432483,125.53,125.49,9.5401]
[1742573268803,35.76432483,125.52,125.49,9.5401]
[1742573269525,35.76432483,125.52,125.49,1.5801]
[1742573269726,35.76432483,125.5,125.45,9.56418339]
[1742573269927,35.76432483,125.48,125.44,26.65124886]
[1742573270440,35.76432483,125.47,125.44,0.03]
[1742573270629,35.76432483,125.47,125.44,312.03]
[1742573271128,43.73462483,125.47,125.44,0.03]
[1742573271338,19.9201,125.51,125.44,0.03]
[1742573271339,43.73392483,125.48,125.44,0.03]
[1742573271515,7.9681,125.5,125.44,8.0018]
[1742573271719,35.76432483,125.48,125.44,8.0018]
[1742573272455,41.59342708,125.49,125.44,43.76612483]
[1742573273414,35.76432483,125.48,125.44,8.0018]
[1742573273613,35.76432483,125.48,125.44,0.03]
[1742573274342,14.1624,125.52,125.45,35.76432483]
[1742573274528,35.76432483,125.51,125.46,35.76432483]
[1742573274735,35.76432483,125.51,125.45,18.64964886]
[1742573274736,35.76432483,125.52,125.47,43.64432483]
[1742573275042,5.83491974,125.51,125.49,9.5352]
[1742573275412,5.83491974,125.51,125.49,31.85344153]
[1742573276314,0.063,125.53,125.49,31.85344153]
[1742573277231,0.063,125.53,125.49,45.23820848]
[1742573277624,0.063,125.53,125.5,35.70300848]
[1742573277954,0.063,125.53,125.5,347.70300848]
[1742573278238,0.063,125.53,125.51,35.70300848]
[1742573278436,0.063,125.53,125.51,43.56300848]
[1742573279138,0.063,125.53,125.52,7.9668]
[1742573280749,0.063,125.53,125.52,43.66980848]
[1742573281541,0.063,125.53,125.52,355.66980848]
[1742573281842,0.063,125.53,125.52,374.31945734]
[1742573282848,0.063,125.53,125.52,338.61644886]
[1742573283140,0.063,125.53,125.52,319.9668]
[1742573283621,0.063,125.53,125.52,7.9668]
[1742573283817,0.063,125.53,125.52,43.66980848]
[1742573285649,0.063,125.53,125.52,62.31945734]
[1742573285948,0.063,125.53,125.52,62.60378048]
[1742573286740,0.063,125.53,125.52,374.60378048]
[1742573287146,0.063,125.53,125.52,62.60378048]
[1742573289452,0.063,125.54,125.53,25.063272]
[1742573289621,0.063,125.54,125.53,60.76628048]
[1742573290050,0.063,125.54,125.53,372.76628048]
[1742573290639,0.063,125.54,125.53,380.73248048]
[1742573291329,0.063,125.54,125.53,374.31885734]
[1742573291734,0.063,125.54,125.52,7.78]
[1742573292541,0.063,125.54,125.53,35.70300848]
[1742573292730,0.063,125.54,125.52,70.09925734]
[1742573292932,0.063,125.54,125.52,51.44960848]
[1742573293932,0.063,125.54,125.52,43.66960848]
[1742573294128,0.063,125.54,125.52,15.7266]
[1742573294335,0.063,125.54,125.52,51.42960848]
[1742573294646,0.063,125.54,125.53,35.70300848]
[1742573295143,0.063,125.54,125.53,43.66920848]
[1742573296129,0.063,125.54,125.53,62.31885734]
[1742573296956,0.0001,125.54,125.53,62.88750362]
[1742573297253,0.063,125.55,125.54,1.89412314]
[1742573297462,0.0001,125.55,125.54,39.18943654]
[1742573297659,0.0001,125.55,125.54,58.12340854]
[1742573298135,0.0001,125.55,125.54,370.12340854]
[1742573298331,0.0001,125.55,125.54,368.53110362]
[1742573298559,0.063,125.58,125.57,54.35265734]
[1742573298738,0.063,125.58,125.57,62.09265734]
[1742573298947,0.063,125.58,125.57,62.37698048]
[1742573299249,0.063,125.62,125.58,0.28432314]
[1742573299432,0.063,125.62,125.61,22.27796998]
[1742573299628,0.063,125.62,125.61,7.74]
[1742573299835,22.34096998,125.62,125.61,7.74]
[1742573300544,22.34096998,125.62,125.58,7.74]
[1742573300749,22.27796998,125.6,125.57,7.74]
[1742573301964,22.27796998,125.6,125.57,319.74]
[1742573302264,30.23946998,125.61,125.57,319.74]
[1742573302485,30.23946998,125.61,125.57,7.74]
[1742573302945,30.30176998,125.62,125.57,30.01796998]
[1742573303356,30.30176998,125.62,125.57,37.98146998]
[1742573303559,0.063,125.62,125.58,22.27796998]
[1742573303752,0.063,125.62,125.59,22.27796998]
[1742573304758,0.063,125.62,125.58,22.27796998]
[1742573304956,0.063,125.62,125.59,22.27796998]
[1742573305156,0.063,125.62,125.6,22.27796998]
[1742573305345,0.063,125.62,125.6,334.27796998]
[1742573305543,0.063,125.62,125.6,312.0]
[1742573306356,22.34096998,125.62,125.6,312.0]
[1742573306838,0.063,125.62,125.6,312.0]
[1742573311063,0.063,125.62,125.6,319.9616]
[1742573311246,0.063,125.62,125.61,29.93796998]
[1742573311563,0.063,125.62,125.61,59.93132765]
[1742573312150,0.063,125.62,125.61,60.21565079]
[1742573314373,0.063,125.62,125.61,59.93132765]
[1742573314551,0.063,125.62,125.61,370.33964198]
[1742573314881,0.063,125.62,125.61,370.48180355]
[1742573316468,0.063,125.62,125.61,58.48180355]
[1742573316676,0.0001,125.62,125.61,60.21524276]
[1742573316969,0.0001,125.63,125.62,19.21829514]
[1742573317166,0.0001,125.63,125.62,41.49626512]
[1742573317683,0.0001,125.63,125.62,49.45676512]
[1742573319468,0.063,125.66,125.63,0.28432314]
[1742573319672,0.063,125.66,125.65,49.17054198]
[1742573319989,0.063,125.66,125.65,64.89356512]
[1742573320479,0.063,125.67,125.65,64.89356512]
[1742573320654,0.063,125.67,125.66,42.80261803]
[1742573321257,0.063,125.67,125.66,43.08694117]
[1742573321258,0.0001,125.67,125.66,43.08694117]
[1742573321578,28.36636998,125.75,125.68,0.28432314]
[1742573321762,28.36636998,125.75,125.71,7.9548]
[1742573321962,22.27796998,125.74,125.71,7.9548]
[1742573322266,28.36636998,125.75,125.72,18.64964886]
[1742573322465,28.36636998,125.75,125.71,7.9548]
[1742573322660,28.36636998,125.75,125.72,18.64964886]
[1742573322860,28.36636998,125.75,125.72,330.64964886]
[1742573323291,0.063,125.75,125.72,330.64964886]
[1742573323589,0.063,125.75,125.72,330.10824886]
[1742573323791,22.34096998,125.75,125.72,330.10824886]
[1742573325588,22.34096998,125.75,125.72,18.10824886]
[1742573325763,30.29316998,125.75,125.72,18.10824886]
[1742573325959,22.27796998,125.74,125.69,38.15819312]
[1742573326167,8.0152,125.75,125.68,26.26964886]
[1742573326168,22.27796998,125.71,125.68,26.26964886]
[1742573326369,8.0152,125.75,125.68,26.26964886]
[1742573326370,22.27796998,125.7,125.68,26.26964886]
[1742573326566,22.27796998,125.71,125.68,26.26964886]
[1742573327985,7.9547,125.72,125.68,26.26964886]
[1742573328162,28.67606998,125.73,125.69,0.28432314]
[1742573328592,22.27796998,125.72,125.69,0.28432314]
[1742573328965,22.27796998,125.71,125.68,338.26964886]
[1742573329163,14.3518,125.73,125.68,26.26964886]
[1742573329164,22.27796998,125.7,125.68,26.26964886]
[1742573329366,22.27796998,125.71,125.68,26.26964886]
[1742573329786,22.27796998,125.69,125.66,18.64964886]
[1742573330083,22.27796998,125.68,125.65,18.64964886]
[1742573330462,22.27796998,125.67,125.65,18.64964886]
[1742573330665,7.9563,125.69,125.64,218.02]
[1742573330666,22.27796998,125.66,125.64,218.02]
[1742573331285,22.27796998,125.65,125.64,218.02]
[1742573331492,22.27796998,125.65,125.64,210.42]
[1742573331786,22.27796998,125.66,125.64,210.42]
[1742573332276,22.27796998,125.65,125.64,210.42]
[1742573333296,35.63643943,125.66,125.64,210.42]